bitfinex/quotes_SOLUSD_20240705
["timestamp","ask_amount","ask_price","bid_price","bid_amount"]
[1720186917779,0.17,133.1,133.05,7.5157]
[1720186917971,0.17,133.1,133.04,0.8646939]
[1720186918375,7.5138,133.09,133.04,0.8646939]
[1720186918582,22.5177,133.15,133.08,7.5139]
[1720186918763,22.5177,133.15,133.09,7.5135]
[1720186918963,22.5177,133.15,133.1,18.7821]
[1720186919156,22.5177,133.15,133.04,0.8646939]
[1720186919470,22.5177,133.15,133.06,18.7879]
[1720186919677,7.5112,133.14,133.08,7.5137]
[1720186920180,52.11,133.18,133.04,38.4452939]
[1720186920389,16.4088,133.25,133.07,15.0]
[1720186920591,16.4088,133.25,133.15,37.5492]
[1720186920592,22.9345,133.25,133.15,37.5492]
[1720186920879,7.5053,133.24,133.18,7.5084]
[1720186921253,7.5053,133.24,133.17,26.2815]
[1720186921494,7.5068,133.22,133.16,7.5097]
[1720186921652,41.6964,133.25,133.14,18.7765]
[1720186921851,41.6964,133.25,133.14,7.5104]
[1720186922176,7.5067,133.22,133.16,7.5096]
[1720186922376,41.6964,133.25,133.15,18.7754]
[1720186922604,7.5075,133.2,133.15,18.7754]
[1720186922972,7.507,133.21,133.15,26.2855]
[1720186923150,22.9345,133.25,133.12,18.779]
[1720186923355,22.9345,133.25,133.1,7.5128]
[1720186923356,7.51,133.16,133.1,7.5128]
[1720186923588,6.2456,133.16,133.1,18.7823]
[1720186923875,0.17,133.15,133.12,26.291]
[1720186924206,0.17,133.15,133.08,18.7846]
[1720186924489,0.17,133.15,133.07,37.5716]
[1720186924490,0.17,133.15,133.11,7.5121]
[1720186924660,0.17,133.15,133.04,38.4446939]
[1720186924855,0.17,133.15,133.1,7.5131]
[1720186925184,0.17,133.15,133.04,38.4446939]
[1720186925185,0.17,133.15,133.14,7.5108]
[1720186925483,0.17,133.15,133.13,26.2893]
[1720186925854,0.17,133.15,133.13,18.7781]
[1720186926057,0.17,133.15,133.13,26.2894]
[1720186926393,7.512,133.12,133.07,18.7861]
[1720186926575,7.6805,133.15,133.09,7.5136]
[1720186926779,0.17,133.15,133.1,7.513]
[1720186926978,0.17,133.15,133.1,26.2954]
[1720186927177,7.6803,133.15,133.1,26.2954]
[1720186927395,7.6803,133.15,133.1,18.7824]
[1720186927625,0.17,133.15,133.1,26.2955]
[1720186927785,0.17,133.15,133.11,7.5124]
[1720186928090,18.7703,133.19,133.12,18.7793]
[1720186928091,0.17,133.16,133.12,18.7793]
[1720186928268,0.17,133.16,133.13,7.511]
[1720186928663,0.17,133.17,133.12,26.2911]
[1720186928873,0.17,133.17,133.05,60.1578]
[1720186928874,7.5097,133.16,133.1,7.5127]
[1720186929180,0.17,133.15,133.09,18.7831]
[1720186929508,7.51,133.16,133.1,7.5126]
[1720186929797,0.17,133.15,133.06,7.5152]
[1720186929984,7.5116,133.13,133.07,26.3003]
[1720186930315,6.0352,133.06,132.94,6.30085161]
[1720186930603,16.0139,133.05,132.91,0.1]
[1720186930770,7.5171,133.03,132.97,7.52]
[1720186930969,16.0139,133.05,132.98,7.5198]
[1720186931201,6.0352,133.06,132.91,60.2972]
[1720186931371,6.0352,133.06,133.01,18.7947]
[1720186931995,6.0352,133.06,133.01,26.3127]
[1720186932196,16.0139,133.1,133.04,7.516]
[1720186932367,16.0139,133.1,133.06,7.5153]
[1720186932567,16.0139,133.1,133.05,26.3046]
[1720186932873,14.0806,133.11,133.09,7.5137]
[1720186932874,6.568,133.11,133.09,7.5137]
[1720186933078,7.5113,133.14,133.07,18.7865]
[1720186933402,7.511,133.14,133.07,26.3012]
[1720186933565,21.1549,133.15,133.08,7.5137]
[1720186933768,7.5111,133.14,133.08,7.5137]
[1720186933982,13.5725,133.15,133.09,7.5134]
[1720186934206,6.0621,133.15,133.1,7.5129]
[1720186934485,21.1549,133.2,133.19,7.5079]
[1720186934884,6.4834,133.26,133.22,7.5062]
[1720186935117,6.4834,133.26,133.21,18.7669]
[1720186935118,6.4834,133.26,133.21,26.2737]
[1720186935980,6.4834,133.26,133.18,18.7715]
[1720186936192,13.9876,133.26,133.19,7.5075]
[1720186936387,7.505,133.25,133.18,26.28]
[1720186936607,6.4834,133.26,133.11,37.5617]
[1720186936783,6.4834,133.26,133.19,18.7699]
[1720186937111,7.5059,133.23,133.16,26.2829]
[1720186937507,0.17,133.22,133.13,18.7785]
[1720186937699,7.5076,133.2,133.13,18.7785]
[1720186937905,7.5086,133.18,133.11,7.512]
[1720186938109,0.17,133.17,133.12,7.5118]
[1720186938323,7.6782,133.19,133.12,7.5118]
[1720186938620,18.7737,133.17,133.04,56.3725]
[1720186938781,58.2615,133.18,133.1,7.5129]
[1720186938782,0.17,133.16,133.1,7.5129]
[1720186938988,0.17,133.16,133.09,18.7836]
[1720186939194,0.17,133.16,133.09,26.2967]
[1720186939789,0.17,133.17,133.1,7.513]
[1720186939990,7.5104,133.15,133.09,26.2971]
[1720186940196,0.17,133.14,133.09,18.7836]
[1720186940524,0.17,133.14,133.09,26.2968]
[1720186940806,0.17,133.15,133.1,7.5126]
[1720186941008,6.1515,133.18,133.14,7.5108]
[1720186941215,13.6602,133.18,133.12,7.5119]
[1720186941417,6.1515,133.18,133.08,37.5708]
[1720186941621,15.6271,133.26,133.09,4.187]
[1720186941918,0.1,133.29,133.24,37.526]
[1720186942122,0.1,133.29,133.28,7.503]
[1720186943127,0.1,133.29,133.24,56.2883]
[1720186943412,0.1,133.29,133.24,37.526]
[1720186943623,0.1,133.29,133.28,7.503]
[1720186945108,0.1,133.29,133.26,26.2632]
[1720186945289,0.1,133.29,133.28,7.503]
[1720186947386,0.0001,133.29,133.28,7.503]
[1720186948111,0.0001,133.29,133.28,107.503]
[1720186948313,0.8646939,133.37,133.36,26.2447]
[1720186950140,9.39e-05,133.37,133.36,26.2447]
[1720186950424,9.39e-05,133.39,133.38,7.4973]
[1720186950726,9.39e-05,133.39,133.38,44.9841]
[1720186953133,9.39e-05,133.39,133.36,26.2445]
[1720186953427,9.39e-05,133.39,133.38,7.4973]
[1720186953600,6.1471939,133.39,133.28,37.5149]
[1720186953803,6.1471939,133.39,133.34,7.4994]
[1720186954003,0.17,133.38,133.34,7.4991]
[1720186954204,0.17,133.38,133.36,7.4983]
[1720186954431,0.17,133.38,133.35,26.2461]
[1720186954819,0.17,133.38,133.37,7.4979]
[1720186955025,9.39e-05,133.39,133.38,26.2407]
[1720186956111,9.39e-05,133.39,133.38,18.7434]
[1720186956830,9.39e-05,133.39,133.38,26.2407]
[1720186957239,9.39e-05,133.39,133.36,7.498]
[1720186957414,9.39e-05,133.39,133.37,7.4974]
[1720186957929,9.39e-05,133.39,133.38,7.4973]
[1720186959315,9.39e-05,133.39,133.35,7.4989]
[1720186959527,9.39e-05,133.39,133.34,26.2481]
[1720186959731,9.39e-05,133.39,133.34,18.7486]
[1720186959946,7.4973939,133.39,133.31,56.2559]
[1720186960109,7.4973939,133.39,133.33,7.5001]
[1720186960110,0.17,133.38,133.33,7.5001]
[1720186960655,0.17,133.38,133.31,56.2559]
[1720186960829,7.5022,133.3,133.24,7.5047]
[1720186961146,6.0485,133.31,133.24,18.7623]
[1720186961447,0.17,133.3,133.27,7.5034]
[1720186961816,0.17,133.3,133.26,26.2637]
[1720186962016,7.5028,133.29,133.23,26.2693]
[1720186962313,7.5028,133.29,133.11,30.3827]
[1720186962314,7.6731,133.28,133.22,7.5063]
[1720186962517,0.17,133.28,133.23,7.5056]
[1720186962745,0.17,133.28,133.22,7.5063]
[1720186962746,7.673,133.28,133.22,7.5063]
[1720186963041,7.673,133.28,133.21,18.7668]
[1720186963042,0.17,133.28,133.21,18.7668]
[1720186963340,7.6734,133.28,133.22,7.5063]
[1720186963644,0.17,133.28,133.22,7.5063]
[1720186963826,0.17,133.28,133.25,7.5045]
[1720186964646,0.17,133.28,133.27,7.5035]
[1720186965421,6.0485,133.31,133.28,7.5028]
[1720186965848,7.4991,133.35,133.29,7.5019]
[1720186967053,14.048,133.36,133.29,18.7557]
[1720186967232,6.5494,133.36,133.32,7.5007]
[1720186967428,6.5494,133.36,133.31,18.7522]
[1720186968250,6.5494,133.36,133.33,7.5]
[1720186968548,6.5494,133.36,133.23,37.5285]
[1720186968734,6.5494,133.36,133.27,18.7582]
[1720186968938,6.5494,133.36,133.26,37.5178]
[1720186969261,15.2985,133.38,133.37,7.4979]
[1720186969452,9.39e-05,133.39,133.38,7.4973]
[1720186970542,9.39e-05,133.39,133.37,26.2419]
[1720186970736,9.39e-05,133.39,133.38,7.4973]
[1720186973149,9.39e-05,133.39,133.38,107.4973]
[1720186973329,0.0001,133.49,133.48,7.4917]
[1720186973528,0.0001,133.49,133.46,18.731]
[1720186973766,0.0001,133.49,133.47,7.4923]
[1720186974126,0.0001,133.49,133.47,7.4921]
[1720186974452,0.0001,133.49,133.46,18.731]
[1720186974754,7.4913,133.49,133.44,7.4939]
[1720186974955,0.0001,133.49,133.44,7.4939]
[1720186975168,7.4913,133.49,133.43,26.2299]
[1720186975665,0.17,133.48,133.43,26.2299]
[1720186975827,0.17,133.48,133.43,18.7355]
[1720186976034,0.1701,133.49,133.4,18.7401]
[1720186976236,0.1701,133.49,133.33,37.4987]
[1720186976443,0.1701,133.49,133.41,7.4953]
[1720186976960,0.1701,133.49,133.43,7.4945]
[1720186977132,0.1701,133.49,133.43,18.7359]
[1720186977560,0.1701,133.49,133.43,26.2304]
[1720186977750,0.1701,133.49,133.45,7.4933]
[1720186978064,0.1701,133.49,133.43,18.7359]
[1720186978236,0.1701,133.49,133.43,26.2303]
[1720186978547,0.1701,133.49,133.45,18.7322]
[1720186978548,0.0001,133.49,133.45,18.7322]
[1720186979061,0.0001,133.49,133.47,7.4919]
[1720186979255,0.0001,133.49,133.48,7.4917]
[1720186979740,0.0001,133.49,133.47,26.2227]
[1720186979944,0.0001,133.49,133.48,7.4917]
[1720186980337,0.0001,133.49,133.42,37.4736]
[1720186980745,0.0001,133.49,133.39,37.4817]
[1720186980952,7.4915,133.49,133.39,37.4817]
[1720186981168,0.0001,133.49,133.39,37.4817]
[1720186981456,0.0001,133.49,133.48,7.4917]
[1720186982167,0.0001,133.49,133.47,7.4921]
[1720186982338,0.0001,133.49,133.44,7.4939]
[1720186982709,18.7309,133.47,133.37,18.7439]
[1720186982869,7.4939,133.45,133.39,7.4966]
[1720186983070,6.4783,133.48,133.36,26.2434]
[1720186983240,23.6983,133.43,133.37,7.4978]
[1720186983562,0.17,133.42,133.37,7.4978]
[1720186983873,7.4995,133.35,133.29,7.5024]
[1720186984157,7.4979,133.37,133.31,7.5008]
[1720186984333,0.17,133.36,133.31,7.5008]
[1720186984532,0.17,133.36,133.31,18.7521]
[1720186984737,0.17,133.36,133.33,7.5001]
[1720186984958,0.17,133.37,133.33,18.7499]
[1720186985254,0.17,133.37,133.3,7.5015]
[1720186985461,7.4989,133.36,133.3,7.5015]
[1720186985652,0.17,133.35,133.3,7.5015]
[1720186986162,0.17,133.35,133.3,26.255]
[1720186986364,0.17,133.36,133.3,26.255]
[1720186986661,7.499,133.35,133.3,18.7536]
[1720186986841,0.17,133.34,133.3,18.7536]
[1720186988146,0.17,133.34,133.33,7.5001]
[1720186988350,6.2389,133.38,133.35,18.7472]
[1720186988573,29.8849,133.43,133.37,7.4974]
[1720186988757,6.1864,133.43,133.42,7.4951]
[1720186989071,7.4929,133.46,133.4,26.2362]
[1720186989656,7.4929,133.46,133.41,7.4956]
[1720186989862,7.4929,133.46,133.4,18.7404]
[1720186990357,6.1912,133.48,133.32,37.501]
[1720186990573,58.3012,133.48,133.37,7.4976]
[1720186990759,7.4941,133.44,133.38,7.4973]
[1720186991063,7.4935,133.45,133.39,7.4967]
[1720186991271,7.4946,133.43,133.38,18.7426]
[1720186991440,77.0314,133.48,133.32,37.501]
[1720186991441,0.17,133.42,133.32,37.501]
[1720186991639,18.9053,133.44,133.34,18.7487]
[1720186991848,22.6725,133.43,133.29,18.7558]
[1720186992048,7.4989,133.36,133.3,7.5014]
[1720186992357,0.17,133.35,133.29,37.5103]
[1720186992563,22.6725,133.43,133.29,37.5103]
[1720186992771,22.6725,133.43,133.37,18.7445]
[1720186992963,22.6725,133.43,133.38,7.4972]
[1720186993280,22.6725,133.43,133.26,52.11]
[1720186993446,7.5008,133.32,133.2,137.5348]
[1720186993648,6.6101,133.39,133.2,37.5348]
[1720186993867,7.5028,133.29,133.15,16.3287]
[1720186994072,7.5027,133.29,133.15,16.3287]
[1720186994370,37.498,133.35,133.22,18.7646]
[1720186994579,18.7508,133.33,133.22,18.7646]
[1720186994745,18.7508,133.33,133.23,7.5053]
[1720186994746,7.5024,133.29,133.23,7.5053]
[1720186994945,7.5036,133.27,133.22,18.7646]
[1720186995181,7.673,133.28,133.22,26.2705]
[1720186995969,0.17,133.28,133.22,18.7646]
[1720186996165,0.17,133.28,133.23,7.5056]
[1720186997978,7.5061,133.23,133.18,18.7703]
[1720186998148,15.9451,133.25,133.18,18.7703]
[1720186998342,0.17,133.24,133.18,18.7703]
[1720186998542,7.6756,133.24,133.18,26.2788]
[1720186999153,7.6756,133.24,133.19,7.508]
[1720186999354,0.17,133.24,133.21,7.5068]
[1720186999564,0.17,133.24,133.2,18.7683]
[1720186999785,0.17,133.24,133.17,18.7726]
[1720186999959,0.17,133.24,133.14,18.7766]
[1720187000149,7.5059,133.23,133.17,7.5091]
[1720187000355,0.17,133.22,133.18,7.5084]
[1720187000562,0.17,133.22,133.17,7.509]
[1720187000866,7.6768,133.22,133.16,18.7738]
[1720187001046,7.507,133.21,133.16,26.2835]
[1720187001247,7.5102,133.16,133.11,0.1]
[1720187001455,34.9032,133.2,133.11,0.1]
[1720187001661,7.5087,133.18,133.12,26.2914]
[1720187001881,0.17,133.17,133.13,7.511]
[1720187002083,0.17,133.17,133.12,18.7796]
[1720187002268,0.17,133.17,133.14,18.7762]
[1720187002472,0.17,133.17,133.14,26.2866]
[1720187002884,0.17,133.17,133.15,7.5102]
[1720187003090,7.6792,133.17,133.11,18.8806]
[1720187003383,0.17,133.17,133.11,7.6124]
[1720187003887,7.6792,133.17,133.12,7.5119]
[1720187004083,0.17,133.17,133.12,7.5119]
[1720187004271,0.17,133.17,133.11,0.1]
[1720187004469,0.17,133.17,133.14,26.2876]
[1720187004868,6.2754,133.18,133.14,18.7768]
[1720187005205,6.2754,133.18,133.11,18.8802]
[1720187005693,6.2754,133.18,133.14,7.5107]
[1720187005887,6.4736,133.27,133.23,18.7641]
[1720187006084,6.4736,133.27,133.11,120.3539]
[1720187006396,6.4736,133.27,133.12,37.5577]
[1720187006780,7.5068,133.22,133.17,7.509]
[1720187006975,7.5069,133.21,133.15,18.7746]
[1720187007285,0.17,133.2,133.16,7.5094]
[1720187007972,0.17,133.21,133.16,7.5094]
[1720187008167,7.677,133.21,133.15,26.2847]
[1720187008494,0.17,133.21,133.16,7.5097]
[1720187008791,0.17,133.21,133.11,0.1]
[1720187009005,7.512,133.12,133.11,0.1]
[1720187009167,7.5126,133.11,133.04,8.3805939]
[1720187009495,0.17,133.1,133.07,7.5146]
[1720187009669,0.17,133.1,133.06,7.5152]
[1720187009869,7.5121,133.12,133.06,7.5152]
[1720187010285,7.5121,133.12,133.07,18.7863]
[1720187010286,7.5122,133.12,133.07,18.7863]
[1720187010481,7.5122,133.12,133.04,0.8646939]
[1720187010482,7.5132,133.1,133.05,7.5159]
[1720187010685,18.7777,133.14,133.06,7.5153]
[1720187010893,58.3283,133.17,133.07,7.5147]
[1720187010894,7.5122,133.12,133.07,7.5147]
[1720187011067,7.5118,133.13,133.07,7.5148]
[1720187011280,0.17,133.12,133.04,0.8646939]
[1720187011477,7.5152,133.07,133.04,0.8646939]
[1720187011697,0.17,133.06,133.04,0.8646939]
[1720187012173,0.17,133.07,133.04,0.8646939]
[1720187012373,0.17,133.07,133.04,8.3810939]
[1720187012723,0.17,133.07,133.06,7.5154]
[1720187013270,6.3997,133.13,133.04,0.8646939]
[1720187013694,7.5126,133.11,133.04,0.8646939]
[1720187013882,13.9112,133.13,133.07,7.5146]
[1720187014084,52.11,133.17,133.07,18.7864]
[1720187014285,7.5098,133.16,133.1,7.5127]
[1720187014498,6.4196,133.19,133.04,0.8646939]
[1720187014697,7.509,133.18,133.12,7.5116]
[1720187014902,13.9278,133.19,133.13,7.5112]
[1720187015100,13.9278,133.19,133.14,7.5107]
[1720187015101,6.4196,133.19,133.14,7.5107]
[1720187015473,6.4196,133.19,133.1,18.7819]
[1720187015673,7.5088,133.18,133.12,7.5118]
[1720187015874,13.9278,133.19,133.13,7.5113]
[1720187016085,6.4196,133.19,133.14,7.5108]
[1720187016501,7.5077,133.2,133.14,7.5108]
[1720187016800,7.5081,133.19,133.13,7.5112]
[1720187016979,7.5086,133.18,133.12,26.2914]
[1720187017182,16.5999,133.21,133.12,26.2916]
[1720187017183,7.5092,133.17,133.12,26.2916]
[1720187017678,18.7704,133.19,133.09,18.7832]
[1720187018002,7.5113,133.14,133.09,18.7832]
[1720187018207,0.17,133.13,133.09,18.7832]
[1720187018377,0.17,133.13,133.09,26.2968]
[1720187018577,6.6579,133.13,133.05,18.7885]
[1720187018802,6.6579,133.13,133.04,0.8646939]
[1720187019097,14.1697,133.13,133.07,26.301]
[1720187019287,0.17,133.13,133.09,18.7841]
[1720187019484,7.5092,133.17,133.11,7.5121]
[1720187019697,6.2492,133.18,133.11,18.781]
[1720187019897,6.2492,133.18,133.13,18.7783]
[1720187020284,13.7582,133.18,133.13,18.7783]
[1720187020601,7.5093,133.17,133.12,7.5116]
[1720187020778,6.2492,133.18,133.12,18.7794]
[1720187020974,6.2492,133.18,133.14,7.5104]
[1720187021377,6.2492,133.18,133.14,7.0104]
[1720187021787,7.5101,133.16,133.1,7.5129]
[1720187021987,6.2492,133.18,133.1,7.5127]
[1720187022297,6.2492,133.18,133.11,7.5125]
[1720187022480,7.5094,133.17,133.11,7.5125]
[1720187022681,7.5097,133.16,133.11,7.5125]
[1720187023101,7.5095,133.17,133.11,7.5125]
[1720187023282,0.17,133.16,133.11,7.5125]
[1720187023482,7.6798,133.16,133.11,7.5125]
[1720187023684,6.2492,133.18,133.08,37.5695]
[1720187023907,6.2492,133.18,133.11,18.7808]
[1720187024404,13.7582,133.18,133.12,7.5116]
[1720187025004,25.0208,133.18,133.08,37.5695]
[1720187025207,0.17,133.17,133.08,37.5695]
[1720187025375,7.5112,133.14,133.08,7.5137]
[1720187025573,0.17,133.13,133.01,37.6904]
[1720187025785,18.7774,133.14,133.01,37.6904]
[1720187025975,7.5122,133.12,133.07,7.5147]
[1720187026189,0.17,133.11,133.01,37.6904]
[1720187026393,0.17,133.13,133.01,37.6904]
[1720187026594,7.5143,133.08,133.03,18.7914]
[1720187026773,0.17,133.07,133.03,26.3083]
[1720187027279,0.17,133.07,133.03,18.7914]
[1720187027585,0.17,133.07,133.05,18.7894]
[1720187027775,0.17,133.07,133.06,7.5154]
[1720187028194,0.17,133.07,133.02,37.5867]
[1720187028195,13.7598,133.15,133.02,37.5867]
[1720187028511,23.2752,133.17,133.02,37.5867]
[1720187028688,7.5099,133.16,133.11,18.7811]
[1720187029006,23.2748,133.17,133.11,26.2935]
[1720187029205,15.7655,133.17,133.06,22.58]
[1720187029376,33.40993366,133.22,133.17,7.5091]
[1720187029579,33.40993366,133.22,133.15,18.7757]
[1720187029580,7.5071,133.21,133.16,7.5095]
[1720187029801,25.90353366,133.22,133.12,18.7792]
[1720187029991,25.90353366,133.22,133.09,37.5666]
[1720187030192,7.5078,133.2,133.14,26.2871]
[1720187030377,7.5081,133.19,133.14,26.2871]
[1720187030577,7.5081,133.19,133.14,18.7765]
[1720187031009,7.5076,133.2,133.14,26.2872]
[1720187031201,7.5085,133.19,133.14,18.7765]
[1720187031498,7.5082,133.19,133.14,18.7765]
[1720187031710,7.5087,133.18,133.13,7.5111]
[1720187032280,7.6792,133.17,133.11,26.2925]
[1720187032584,7.5097,133.16,133.11,18.7801]
[1720187032785,0.17,133.15,133.11,26.2925]
[1720187032979,7.5124,133.12,133.05,18.7894]
[1720187033177,0.17,133.11,133.04,0.8646939]
[1720187033381,0.17,133.11,133.08,7.5138]
[1720187033600,0.17,133.11,133.07,26.3015]
[1720187033806,7.6826,133.11,133.05,7.5155]
[1720187034385,7.5133,133.1,133.04,27.1711939]
[1720187034579,0.17,133.09,133.04,27.1711939]
[1720187035013,0.17,133.09,133.04,0.8646939]
[1720187035176,18.7819,133.11,133.04,0.8646939]
[1720187035177,7.5144,133.08,133.04,0.8646939]
[1720187035380,0.17,133.07,133.04,0.8646939]
[1720187036782,0.17,133.08,133.04,0.8646939]
[1720187037393,0.17,133.08,133.05,7.5154]
[1720187037888,7.5127,133.11,133.05,7.5154]
[1720187038203,15.864,133.12,133.07,7.5146]
[1720187038395,15.864,133.12,133.09,7.5136]
[1720187038700,23.3761,133.12,133.06,26.3037]
[1720187039011,15.864,133.12,133.06,18.7884]
[1720187039216,13.6954,133.13,133.08,7.5142]
[1720187039393,6.1838,133.13,133.08,18.7853]
[1720187039595,6.1838,133.13,133.05,37.5782]
[1720187039910,6.1838,133.13,133.1,18.7826]
[1720187040116,6.1838,133.13,133.07,18.7857]
[1720187040288,6.1838,133.13,133.04,19.6545939]
[1720187040489,6.1838,133.13,133.09,7.5136]
[1720187040695,6.1838,133.13,133.1,7.513]
[1720187040909,6.1838,133.13,133.11,7.5121]
[1720187041099,15.9673,133.16,133.11,7.5123]
[1720187041408,6.5945,133.18,133.15,7.5099]
[1720187041611,6.5945,133.18,133.08,18.7847]
[1720187041612,18.7733,133.17,133.08,18.7847]
[1720187041782,18.7733,133.17,133.04,0.8646939]
[1720187041783,7.5121,133.12,133.07,7.5148]
[1720187041987,7.5121,133.12,133.04,0.8646939]
[1720187041988,7.513,133.11,133.05,7.5159]
[1720187042200,7.5132,133.1,133.04,27.1720939]
[1720187042609,52.11,133.15,133.06,18.7884]
[1720187042788,0.17,133.14,133.04,8.3809939]
[1720187042989,7.5133,133.1,133.04,8.3810939]
[1720187043189,7.6839,133.09,133.04,0.8646939]
[1720187043399,0.17,133.08,133.04,8.3807939]
[1720187043612,0.17,133.08,133.04,0.8646939]
[1720187045290,7.6846,133.08,133.04,0.8646939]
[1720187045924,7.5159,133.05,133.04,0.8646939]
[1720187046125,0.17,133.05,132.99,7.5193]
[1720187046295,0.17,133.05,132.95,37.6053]
[1720187046296,0.17,133.04,132.95,37.6053]
[1720187046819,7.6867,133.04,132.98,7.5198]
[1720187047119,0.17,133.04,133.0,7.5187]
[1720187047296,0.17,133.04,132.99,26.3172]
[1720187047499,7.5171,133.03,132.98,7.5198]
[1720187047696,0.17,133.02,132.9,0.8646939]
[1720187048014,0.17,133.04,132.9,0.8646939]
[1720187048015,7.5184,133.01,132.95,7.5214]
[1720187048312,18.7947,133.02,132.93,26.3281]
[1720187048491,0.17,133.04,132.9,0.8646939]
[1720187048492,6.037,133.0,132.9,0.8646939]
[1720187048692,6.037,133.0,132.9,8.3887939]
[1720187048693,7.5214,132.96,132.9,8.3887939]
[1720187048903,7.5206,132.97,132.91,7.6234]
[1720187049103,6.037,133.0,132.91,0.1]
[1720187049317,6.037,133.0,132.95,18.8037]
[1720187049694,13.5558,133.0,132.95,18.8037]
[1720187049891,0.17,132.99,132.95,18.8037]
[1720187050103,0.17,132.99,132.96,7.5206]
[1720187050309,7.82960845,133.03,132.91,37.7175]
[1720187050310,7.82960845,133.03,132.98,7.5199]
[1720187050621,18.7863,133.08,133.02,7.5176]
[1720187050622,20.17125572,133.08,133.02,7.5176]
[1720187050795,6.1703,133.08,133.01,26.3132]
[1720187051002,7.5153,133.07,133.01,26.3132]
[1720187051315,6.1703,133.08,132.98,18.7989]
[1720187051501,7.518,133.02,132.96,7.5208]
[1720187051699,6.1703,133.08,132.95,18.8029]
[1720187051700,7.5186,133.01,132.95,18.8029]
[1720187051916,7.5172,133.03,132.97,7.5203]
[1720187052116,7.518,133.02,132.97,18.8004]
[1720187052321,7.5171,133.03,132.98,7.5194]
[1720187052521,18.7888,133.06,132.98,7.5194]
[1720187052894,7.5166,133.04,132.98,7.5197]
[1720187053104,22.1062,133.02,132.91,0.1]
[1720187053317,0.17,133.01,132.94,18.8043]
[1720187053616,7.5208,132.97,132.91,26.4321]
[1720187053827,7.6914,132.96,132.91,18.9086]
[1720187054117,7.6912,132.96,132.91,0.1]
[1720187054328,7.6912,132.96,132.91,7.6238]
[1720187054690,0.17,132.96,132.92,7.5232]
[1720187055109,40.901,133.02,132.92,18.808]
[1720187055520,22.1062,133.02,132.94,18.805]
[1720187055700,58.6242,133.07,132.98,18.7996]
[1720187055904,58.6242,133.07,133.0,7.5186]
[1720187055905,7.516,133.05,133.0,7.5186]
[1720187056218,7.5154,133.06,133.0,7.5184]
[1720187056422,6.5142,133.07,133.03,7.517]
[1720187056628,6.5142,133.07,133.02,26.311]
[1720187056800,6.5142,133.07,133.03,7.517]
[1720187057201,6.5142,133.07,133.03,7.5168]
[1720187057398,7.82963028,133.11,133.0,19.6419]
[1720187057599,6.1862,133.17,133.1,18.7824]
[1720187057906,13.6954,133.17,133.11,7.5124]
[1720187058102,6.1862,133.17,133.07,56.3576]
[1720187058333,6.1862,133.17,133.08,7.5141]
[1720187058528,7.5125,133.11,133.05,7.5158]
[1720187058826,6.1862,133.17,133.04,18.7905]
[1720187059042,7.5132,133.1,133.04,26.3068]
[1720187059327,6.1862,133.17,133.04,18.7905]
[1720187059510,7.5131,133.11,133.05,7.5156]
[1720187060328,0.17,133.1,133.05,7.5156]
[1720187060915,7.6832,133.1,133.04,26.3069]
[1720187061312,0.17,133.1,132.95,104.187]